[Event "Fagernes GM Swiss 2020"]
[Site "Fagernes"]
[Date "2020.10.10"]
[Round "8.19"]
[White "Fossan, Aleksander"]
[Black "Fuglestein, Sander"]
[Result "1/2-1/2"]
[ECO "B13"]
[WhiteElo "2171"]
[BlackElo "2109"]
[Annotator "ChessBase"]
[PlyCount "42"]
[EventDate "2020.10.04"]
[EventType "swiss"]
[EventCountry "NOR"]
[SourceTitle "playchess.com"]
[Source "ChessBase"]
[SourceQuality "1"]
[TimeControl "40/6000+30:2400+30"]

1. e4 {[%emt 0:00:54]} c6 {[%emt 0:00:00]} 2. d4 {[%emt 0:00:04]} d5 {[%emt 0:00:00]} 3. exd5 {[%emt 0:00:10]} cxd5 {[%emt 0:00:00]} 4. c4 {[%emt 0:00:04]} Nf6 {[%emt 0:00:00]} 5. Nc3 {[%emt 0:00:06]} Nc6 {[%emt 0:00:00]} 6. Bg5 {[%emt 0:00:06]} dxc4 {[%emt 0:00:13]} 7. Bxc4 {[%emt 0:00:09]} h6 {[%emt 0:00:35]} 8. Bf4 {[%emt 0:01:22]} e6 {[%emt 0:00:41]} 9. Nf3 {[%emt 0:01:05]} Be7 {[%emt 0:02:15]} 10. O-O {[%emt 0:02:11]} O-O {[%emt 0:00:17]} 11. a3 {[%emt 0:16:45]} b6 {[%emt 0:02:17]} 12. Qd3 {[%emt 0:03:19]} Bb7 {[%emt 0:01:16]} 13. Rad1 {[%emt 0:07:24]} Rc8 {[%emt 0:13:19]} 14. Rfe1 {[%emt 0:06:35]} Bd6 {[%emt 0:12:07]} 15. Be5 {[%emt 0:06:08]} Ng4 {[%emt 0:10:22]} 16. Bxd6 {[%emt 0:04:58]} Qxd6 {[%emt 0:00:18]} 17. Ne4 {[%emt 0:27:53]} Qd8 {[%emt 0:03:53]} 18. Ba2 {[%emt 0:02:54]} Ne7 {[%emt 0:05:10]} 19. h3 {[%emt 0:01:50]} Bxe4 {[%emt 0:00:11]} 20. Qxe4 {[%emt 0:00:07]} Nf6 {[%emt 0:00:11]} 21. Qd3 {[%emt 0:01:10]} Qc7 {[%emt 0:04:23]} 1/2-1/2

[Event "Fagernes GM Swiss 2020"]
[Site "Fagernes"]
[Date "2020.10.10"]
[Round "8.20"]
[White "Skaslien, Ingrid"]
[Black "Brodtkorb, Lars Johan"]
[Result "1/2-1/2"]
[ECO "D36"]
[WhiteElo "1976"]
[BlackElo "2166"]
[Annotator "NA"]
[PlyCount "139"]
[EventDate "2020.10.04"]
[EventType "swiss"]
[EventCountry "NOR"]
[SourceTitle "playchess.com"]
[Source "ChessBase"]
[SourceQuality "1"]
[TimeControl "40/6000+30:2400+30"]

1. d4 {[%emt 0:00:00]} d5 {[%emt 0:00:00]} 2. c4 {[%emt 0:00:00]} e6 {[%emt 0:00:02]} 3. Nc3 {[%emt 0:00:05]} Nf6 {[%emt 0:00:20]} 4. cxd5 {[%emt 0:00:26]} exd5 {[%emt 0:00:12]} 5. Bg5 {[%emt 0:00:13]} c6 {[%emt 0:00:17]} 6. e3 {[%emt 0:00:33]} Be7 {[%emt 1:42:09]} 7. Bd3 {[%emt 0:00:35]} Nbd7 {[%emt 0:00:00]} 8. Qc2 {[%emt 0:04:16]} Nf8 {[%emt 0:00:00]} 9. Nge2 {[%emt 0:06:13]} Ne6 {[%emt 0:00:00]} 10. Bh4 {[%emt 0:05:30]} g6 {[%emt 0:00:00]} 11. O-O {[%emt 0:02:19]} O-O {[%emt 0:00:00]} 12. Rad1 {[%emt 0:09:44]} Bd7 {[%emt 0:00:00]} 13. Nf4 {[%emt 0:07:59]} Nxf4 {[%emt 0:00:00]} 14. exf4 {[%emt 0:00:06]} Nh5 {[%emt 0:00:00]} 15. Bxe7 {[%emt 0:01:46]} Qxe7 {[%emt 0:00:00]} 16. Rfe1 {[%emt 0:27:16]} Qd6 {[%emt 0:00:00]} 17. g3 {[%emt 0:10:08]} Rae8 {[%emt 0:00:00]} 18. f5 $17 {[%emt 0:01:35]} Kg7 {[%emt 0:00:00]} 19. Re2 {[%emt 0:09:58]} Qb4 {[%emt 0:00:00]} 20. Rxe8 {[%emt 0:03:33]} Rxe8 {[%emt 0:00:00]} 21. Ne2 {[%emt 0:02:51]} Nf6 {[%emt 0:00:00]} 22. a3 {[%emt 0:01:30]} Qe7 {[%emt 0:00:00]} 23. Nf4 {[%emt 0:05:16]} a5 {[%emt 0:00:00]} 24. Qd2 {[%emt 0:03:03]} a4 {[%emt 0:00:00]} 25. Qc2 {[%emt 0:01:05]} b5 {[%emt 0:00:00]} 26. Rc1 {[%emt 0:01:33]} g5 {[%emt 0:00:00]} 27. Ng2 {[%emt 0:00:24]} Ne4 {[%emt 0:00:00]} 28. Ne3 {[%emt 0:00:35]} f6 {[%emt 0:00:00]} 29. Re1 {[%emt 0:02:40]} Nd6 {[%emt 0:00:00]} 30. Re2 {[%emt 0:00:21]} Qd8 {[%emt 0:00:00]} 31. Qc5 {[%emt 0:00:24]} Qb8 {[%emt 0:00:00]} 32. Nc2 {[%emt 0:00:50]} Rxe2 {[%emt 0:00:00]} 33. Bxe2 {[%emt 0:00:06]} Nc8 {[%emt 0:03:30]} 34. Nb4 {[%emt 0:01:11]} Qb6 {[%emt 0:00:32]} 35. Qc3 {[%emt 0:00:31]} Nd6 {[%emt 0:02:18]} 36. g4 {[%emt 0:00:07]} Ne4 {[%emt 0:01:15]} 37. Qe3 {[%emt 0:00:23]} Qc7 {[%emt 0:02:28]} 38. f3 {[%emt 0:00:33]} Nd6 {[%emt 0:00:03]} 39. Qe7+ {[%emt 0:00:17]} Nf7 {[%emt 0:00:02]} 40. Kg2 {[%emt 0:00:36]} Qd6 {[%emt 0:01:10]} 41. Qe3 {[%emt 0:06:22]} Kf8 {[%emt 0:09:03]} 42. Nd3 {[%emt 0:01:30]} Qe7 {[%emt 0:00:48]} 43. Kf2 {[%emt 0:02:00]} Qd6 {[%emt 0:02:36]} 44. Kg2 {[%emt 0:04:45]} Qe7 {[%emt 0:10:30]} 45. Kf2 {[%emt 0:01:23]} Nd6 {[%emt 0:03:22]} 46. Nc5 {[%emt 0:01:50]} Bc8 {[%emt 0:02:44]} 47. f4 {[%emt 0:07:58]} h5 {[%emt 0:06:04]} 48. h3 {[%emt 0:03:42]} hxg4 {[%emt 0:08:30]} 49. hxg4 {[%emt 0:01:45]} Qxe3+ {[%emt 0:03:11]} 50. Kxe3 {[%emt 0:00:03]} Ke7 {[%emt 0:00:05]} 51. fxg5 {[%emt 0:00:57]} fxg5 {[%emt 0:00:02]} 52. Bd3 {[%emt 0:00:46]} Ne8 {[%emt 0:01:52]} 53. Be2 {[%emt 0:01:44]} Nd6 {[%emt 0:00:05]} 54. Kd2 {[%emt 0:01:13]} Nb7 {[%emt 0:02:30]} 55. Nxb7 {[%emt 0:01:08]} Bxb7 {[%emt 0:00:03]} 56. Kc3 {[%emt 0:00:29]} Kd6 {[%emt 0:00:11]} 57. Kb4 {[%emt 0:00:34]} Bc8 {[%emt 0:00:01]} 58. Bd3 {[%emt 0:01:34]} Bd7 {[%emt 0:00:07]} 59. Be2 {[%emt 0:01:27]} Be8 {[%emt 0:00:11]} 60. Bd1 {[%emt 0:02:14]} Bd7 {[%emt 0:00:09]} 61. b3 {[%emt 0:03:19]} axb3 {[%emt 0:00:03]} 62. Bxb3 {[%emt 0:00:06]} Bc8 {[%emt 0:00:29]} 63. Bd1 {[%emt 0:01:23]} Bd7 {[%emt 0:00:52]} 64. Be2 {[%emt 0:00:18]} Be8 {[%emt 0:00:46]} 65. Bd3 {[%emt 0:00:59]} Bd7 {[%emt 0:00:06]} 66. Ka5 {[%emt 0:02:10]} Kc7 {[%emt 0:02:17]} 67. Ka6 {[%emt 0:01:24]} Bc8+ {[%emt 0:00:08]} 68. Ka5 {[%emt 0:00:27]} Bd7 {[%emt 0:00:02]} 69. Bc2 {[%emt 0:00:32]} Bc8 {[%emt 0:00:25]} 70. Kb4 {[%emt 0:04:27]} 1/2-1/2

[Event "Fagernes GM Swiss 2020"]
[Site "Fagernes"]
[Date "2020.10.10"]
[Round "8.21"]
[White "Bentsen, Hakon"]
[Black "Grover, Sigurd Loe"]
[Result "1-0"]
[ECO "C06"]
[WhiteElo "2120"]
[BlackElo "2145"]
[Annotator "ChessBase"]
[PlyCount "89"]
[EventDate "2020.10.04"]
[EventType "swiss"]
[EventCountry "NOR"]
[SourceTitle "playchess.com"]
[Source "ChessBase"]
[SourceQuality "1"]
[TimeControl "40/6000+30:2400+30"]

1. e4 {[%emt 0:00:00]} e6 {[%emt 0:00:00]} 2. d4 {[%emt 0:00:00]} d5 {[%emt 0:00:00]} 3. Nd2 {[%emt 0:00:00]} Nf6 {[%emt 0:00:00]} 4. e5 {[%emt 0:00:00]} Nfd7 {[%emt 0:00:00]} 5. Bd3 {[%emt 0:00:06]} c5 {[%emt 0:00:00]} 6. c3 {[%emt 0:00:07]} Nc6 {[%emt 0:00:05]} 7. Ne2 {[%emt 0:00:06]} cxd4 {[%emt 0:00:09]} 8. cxd4 {[%emt 0:00:04]} f6 {[%emt 0:00:06]} 9. exf6 {[%emt 0:00:13]} Nxf6 {[%emt 0:00:08]} 10. O-O {[%emt 0:00:10]} Bd6 {[%emt 0:00:04]} 11. Nf3 {[%emt 0:00:07]} Qc7 {[%emt 0:00:08]} 12. Nc3 {[%emt 0:00:50]} a6 {[%emt 0:00:22]} 13. Bd2 {[%emt 0:00:08]} O-O {[%emt 0:00:29]} 14. Rc1 {[%emt 0:00:12]} Bd7 {[%emt 0:00:29]} 15. Re1 {[%emt 0:00:16]} Ng4 {[%emt 0:03:31]} 16. Bxh7+ {[%emt 0:01:33]} Kh8 {[%emt 0:00:59]} 17. g3 {[%emt 0:00:11]} Be8 {[%emt 0:01:41]} 18. Rxe6 {[%emt 0:00:30]} Nxf2 {[%emt 0:01:17]} 19. Kxf2 {[%emt 0:00:09]} Bh5 {[%emt 0:00:12]} 20. Nxd5 {[%emt 0:00:06]} Bxf3 {[%emt 0:00:16]} 21. Nxc7 {[%emt 0:00:06]} Bxd1+ {[%emt 0:00:08]} 22. Ke1 {[%emt 0:00:04]} Bxc7 {[%emt 0:00:21]} 23. Kxd1 {[%emt 0:00:38]} Kxh7 {[%emt 0:00:13]} 24. d5 {[%emt 0:00:08]} Nd4 {[%emt 0:00:05]} 25. Rxc7 {[%emt 0:00:08]} Nxe6 {[%emt 0:00:09]} 26. dxe6 {[%emt 0:00:05]} Rae8 {[%emt 0:02:26]} 27. Bc3 {[%emt 0:00:11]} Rxe6 {[%emt 0:00:16]} 28. Rxg7+ {[%emt 0:00:07]} Kh6 {[%emt 0:00:05]} 29. Rxb7 {[%emt 0:00:09]} Rf2 {[%emt 0:04:06]} 30. h4 {[%emt 0:01:03]} Rg2 {[%emt 0:02:58]} 31. a4 {[%emt 0:11:35]} Rxg3 {[%emt 0:03:52]} 32. Kc2 {[%emt 0:01:49]} Rg4 {[%emt 0:04:00]} 33. a5 {[%emt 0:04:05]} Rxh4 {[%emt 0:01:46]} 34. Rb6 {[%emt 0:04:26]} Rhe4 {[%emt 0:03:56]} 35. Bd4 {[%emt 0:10:26]} Rxb6 {[%emt 0:07:10]} 36. Bxb6 {[%emt 0:00:21]} Kg6 {[%emt 0:00:18]} 37. Kc3 {[%emt 0:00:15]} Kf5 {[%emt 0:00:23]} 38. b4 {[%emt 0:00:31]} Ke5 {[%emt 0:00:36]} 39. Bc5 {[%emt 0:00:12]} Kd5 {[%emt 0:00:14]} 40. Kd3 {[%emt 0:01:11]} Rh4 {[%emt 0:01:39]} 41. Kd2 {[%emt 0:40:40]} Rh3 {[%emt 0:41:45]} 42. Kc2 {[%emt 0:00:07]} Kc4 {[%emt 0:00:25]} 43. Kd2 {[%emt 0:00:06]} Rh2+ {[%emt 0:03:16]} 44. Ke3 {[%emt 0:00:06]} Rd2 {[%emt 0:05:55]} 45. Kxd2 {[%emt 0:00:11]} 1-0

[Event "Fagernes GM Swiss 2020"]
[Site "Fagernes"]
[Date "2020.10.10"]
[Round "8.22"]
[White "Machlik, Monika"]
[Black "Bjerke, Richard"]
[Result "1-0"]
[ECO "E32"]
[WhiteElo "2082"]
[BlackElo "2144"]
[Annotator "NA"]
[PlyCount "103"]
[EventDate "2020.10.04"]
[EventType "swiss"]
[EventCountry "NOR"]
[SourceTitle "playchess.com"]
[Source "ChessBase"]
[SourceQuality "1"]
[TimeControl "40/6000+30:2400+30"]

1. d4 {[%emt 0:00:00]} Nf6 {[%emt 0:00:00]} 2. c4 {[%emt 0:00:00]} e6 {[%emt 0:00:22]} 3. Nc3 {[%emt 0:00:00]} Bb4 {[%emt 0:00:38]} 4. Qc2 {[%emt 0:00:00]} O-O {[%emt 0:00:44]} 5. a3 {[%emt 0:00:00]} Bxc3+ {[%emt 0:00:13]} 6. Qxc3 {[%emt 0:00:00]} b6 {[%emt 0:00:31]} 7. Bg5 {[%emt 0:00:10]} Bb7 {[%emt 0:00:35]} 8. f3 {[%emt 0:00:14]} h6 {[%emt 0:01:24]} 9. Bh4 {[%emt 0:00:03]} d5 {[%emt 0:00:43]} 10. e3 {[%emt 0:00:57]} c5 {[%emt 0:00:45]} 11. dxc5 {[%emt 0:09:40]} Nbd7 {[%emt 0:00:34]} 12. cxd5 {[%emt 0:13:10]} g5 {[%emt 0:00:45]} 13. Bf2 {[%emt 0:42:05]} Nxd5 {[%emt 0:01:30]} 14. Qc2 {[%emt 0:01:58]} Nxc5 {[%emt 0:06:51]} 15. e4 {[%emt 0:03:44]} Nf6 {[%emt 0:10:03]} 16. Rd1 {[%emt 0:06:09]} Ncd7 {[%emt 0:04:23]} 17. Bb5 {[%emt 0:01:46]} a6 $16 {[%emt 0:03:16]} 18. Bxd7 {[%emt 0:01:58]} Nxd7 {[%emt 0:00:10]} 19. Ne2 {[%emt 0:02:29]} b5 {[%emt 0:05:50]} 20. O-O {[%emt 0:01:55]} Rc8 {[%emt 0:02:51]} 21. Nc3 {[%emt 0:01:03]} Qc7 {[%emt 0:01:25]} 22. Bg3 {[%emt 0:07:58]} Qb6+ {[%emt 0:06:52]} 23. Kh1 {[%emt 0:02:11]} Nf6 {[%emt 0:05:36]} 24. Rd6 {[%emt 0:02:29]} Rc6 {[%emt 0:03:06]} 25. Rxc6 {[%emt 0:02:01]} Bxc6 {[%emt 0:02:11]} 26. Rd1 {[%emt 0:00:45]} Rd8 {[%emt 0:02:29]} 27. Bf2 {[%emt 0:01:57]} Rxd1+ {[%emt 0:05:39]} 28. Nxd1 {[%emt 0:00:09]} Qb7 {[%emt 0:00:39]} 29. Qd3 {[%emt 0:01:03]} Qd7 {[%emt 0:03:26]} 30. Qxd7 {[%emt 0:00:20]} Nxd7 {[%emt 0:00:09]} 31. Bd4 {[%emt 0:00:23]} f6 {[%emt 0:01:06]} 32. Kg1 {[%emt 0:00:34]} Kf7 {[%emt 0:01:52]} 33. Kf2 {[%emt 0:00:30]} Ke7 {[%emt 0:00:47]} 34. Ke2 {[%emt 0:00:27]} Kd6 {[%emt 0:01:03]} 35. Kd3 {[%emt 0:02:51]} h5 {[%emt 0:11:02]} 36. Nf2 {[%emt 0:02:12]} f5 {[%emt 0:08:15]} 37. b4 {[%emt 0:01:28]} Ne5+ {[%emt 0:00:56]} 38. Bxe5+ {[%emt 0:00:19]} Kxe5 {[%emt 0:00:08]} 39. Ke3 {[%emt 0:01:10]} fxe4 {[%emt 0:03:26]} 40. fxe4 {[%emt 0:01:17]} Kd6 {[%emt 0:03:12]} 41. Nh3 {[%emt 0:14:11]} g4 {[%emt 0:01:01]} 42. Nf4 {[%emt 0:00:49]} Be8 {[%emt 0:11:16]} 43. Nd3 {[%emt 0:01:22]} Bc6 {[%emt 0:00:38]} 44. Kf4 {[%emt 0:10:06]} Bb7 {[%emt 0:01:23]} 45. Nc5 {[%emt 0:06:16]} Bc8 {[%emt 0:00:19]} 46. Kg5 {[%emt 0:03:15]} a5 {[%emt 0:00:31]} 47. Kxh5 {[%emt 0:00:36]} axb4 {[%emt 0:00:11]} 48. axb4 {[%emt 0:00:07]} g3 {[%emt 0:02:20]} 49. hxg3 {[%emt 0:00:13]} Ke5 {[%emt 0:00:11]} 50. g4 {[%emt 0:01:17]} Kf6 {[%emt 0:00:48]} 51. g5+ {[%emt 0:00:41]} Kg7 {[%emt 0:00:19]} 52. e5 {[%emt 0:00:20]} 1-0

[Event "Fagernes GM Swiss 2020"]
[Site "Fagernes"]
[Date "2020.10.10"]
[Round "8.23"]
[White "Royset, Pal"]
[Black "Melaa, Sondre"]
[Result "0-1"]
[ECO "B01"]
[WhiteElo "2150"]
[BlackElo "2210"]
[Annotator "NA"]
[PlyCount "94"]
[EventDate "2020.10.04"]
[EventType "swiss"]
[EventCountry "NOR"]
[SourceTitle "playchess.com"]
[Source "ChessBase"]
[SourceQuality "1"]
[TimeControl "40/6000+30:2400+30"]

1. e4 {[%emt 0:00:10]} d5 {[%emt 0:09:18]} 2. exd5 {[%emt 0:00:36]} Qxd5 {[%emt 0:00:09]} 3. Nc3 {[%emt 0:00:26]} Qd8 {[%emt 0:00:07]} 4. Nf3 {[%emt 0:00:54]} Nf6 {[%emt 0:00:17]} 5. Bc4 {[%emt 0:01:07]} a6 {[%emt 0:00:35]} 6. O-O {[%emt 0:01:35]} b5 {[%emt 0:02:07]} 7. Bb3 {[%emt 0:00:57]} c5 {[%emt 0:01:29]} 8. d3 {[%emt 0:02:03]} e6 {[%emt 0:05:17]} 9. Re1 {[%emt 0:01:57]} Be7 {[%emt 0:03:54]} 10. Ne5 {[%emt 0:04:10]} Bb7 {[%emt 0:07:22] [#]} (10... O-O $11 {keeps the balance.}) 11. Qe2 $1 {[%emt 0:09:46]} O-O {[%emt 0:02:41]} 12. Nxf7 {[%emt 0:05:15]} Kxf7 {[%emt 0:00:18]} 13. Bxe6+ {[%emt 0:00:49]} Ke8 {[%emt 0:00:51]} 14. Bg5 {[%emt 0:04:27]} Qd6 {[%emt 0:05:34]} 15. Qe3 {[%emt 0:10:49]} b4 {[%emt 0:31:03]} 16. Na4 {[%emt 0:01:27]} Qc6 {[%emt 0:04:04] [#]} (16... Kd8 $16 {was necessary.}) 17. Bh3 $1 {[%emt 0:00:09]} Rf7 {[%emt 0:05:49]} 18. Nxc5 {[%emt 0:05:46]} Bc8 $18 {[%emt 0:02:46]} (18... Kf8 $142 19. Nxb7 Qxb7) 19. d4 {[%emt 0:08:49]} Bxh3 {[%emt 0:04:20]} 20. Qxh3 {[%emt 0:00:18]} Kf8 {[%emt 0:02:16]} 21. Re6 {[%emt 0:04:00]} Qc7 {[%emt 0:06:38]} 22. Re5 {[%emt 0:04:03]} Kg8 {[%emt 0:03:50]} 23. Rae1 {[%emt 0:06:32]} Nc6 {[%emt 0:04:18]} 24. Ne6 {[%emt 0:05:08]} Qd7 {[%emt 0:01:37]} 25. Qb3 {[%emt 0:01:03]} Nxe5 {[%emt 0:01:25]} 26. Rxe5 {[%emt 0:01:38]} Kh8 {[%emt 0:01:47]} 27. h3 {[%emt 0:04:12]} Bd6 {[%emt 0:00:42]} 28. Nc5 {[%emt 0:04:33]} Bxc5 {[%emt 0:00:31]} 29. dxc5 {[%emt 0:00:46]} Re8 {[%emt 0:01:11]} 30. Rxe8+ {[%emt 0:00:58]} Qxe8 {[%emt 0:00:14]} 31. Qxb4 {[%emt 0:00:22]} h6 {[%emt 0:00:19]} 32. Bd2 {[%emt 0:01:27]} Qe4 {[%emt 0:00:39]} 33. Qxe4 {[%emt 0:00:51]} Nxe4 {[%emt 0:00:10]} 34. Be3 {[%emt 0:00:05]} Rc7 {[%emt 0:01:06]} 35. b4 {[%emt 0:00:16]} Nc3 {[%emt 0:00:18]} 36. a3 {[%emt 0:03:03]} Kg8 {[%emt 0:00:56]} 37. Kf1 {[%emt 0:02:03]} Rd7 {[%emt 0:00:26]} 38. g3 {[%emt 0:05:11]} Kf7 {[%emt 0:00:36]} 39. g4 {[%emt 0:00:58]} Ke6 {[%emt 0:00:31]} 40. f4 {[%emt 0:01:03]} Kd5 {[%emt 0:00:42]} 41. f5 {[%emt 0:46:18]} Ke4 {[%emt 0:40:14]} 42. c6 {[%emt 0:00:20]} Rc7 {[%emt 0:00:48]} 43. Bc5 {[%emt 0:01:24]} Rxc6 {[%emt 0:00:23]} 44. Bf8 {[%emt 0:00:06]} g6 {[%emt 0:01:13]} 45. Bxh6 {[%emt 0:04:40]} gxf5 {[%emt 0:00:11]} 46. g5 {[%emt 0:00:00]} Kf3 {[%emt 0:00:43]} 47. Bg7 {[%emt 0:00:00]} Ne4 {[%emt 0:00:14]} 0-1

[Event "Fagernes GM Swiss 2020"]
[Site "Fagernes"]
[Date "2020.10.10"]
[Round "8.24"]
[White "Kvendseth, Thyra"]
[Black "Flatebo, Hallvard Haug"]
[Result "1-0"]
[ECO "D02"]
[WhiteElo "2017"]
[BlackElo "1877"]
[Annotator "NA"]
[PlyCount "121"]
[EventDate "2020.10.04"]
[EventType "swiss"]
[EventCountry "NOR"]
[SourceTitle "playchess.com"]
[Source "ChessBase"]
[SourceQuality "1"]
[TimeControl "40/6000+30:2400+30"]

1. Nf3 {[%emt 0:00:00]} Nf6 {[%emt 0:00:00]} 2. g3 {[%emt 0:00:08]} g6 {[%emt 0:00:00]} 3. Bg2 {[%emt 0:00:06]} d5 {[%emt 0:00:00]} 4. d4 {[%emt 0:00:34]} Bg7 {[%emt 0:00:01]} 5. O-O {[%emt 0:00:08]} O-O {[%emt 0:00:05]} 6. Nbd2 {[%emt 0:00:53]} c6 {[%emt 0:01:18]} 7. b3 {[%emt 0:02:07]} Qc7 {[%emt 0:04:02]} 8. Bb2 {[%emt 0:01:04]} Nbd7 {[%emt 0:03:30]} 9. c4 {[%emt 0:02:18]} b6 {[%emt 0:06:00]} 10. Rc1 {[%emt 0:01:23]} e6 {[%emt 0:08:21]} 11. Ne5 {[%emt 0:06:56]} Bb7 {[%emt 0:06:49]} 12. Qc2 {[%emt 0:08:58]} Nxe5 {[%emt 0:06:23]} 13. dxe5 {[%emt 0:00:15]} Ng4 {[%emt 0:00:53]} 14. cxd5 {[%emt 0:02:02]} exd5 {[%emt 0:02:05]} 15. e6 {[%emt 0:12:49]} Bxb2 {[%emt 0:11:10]} 16. Qxb2 {[%emt 0:00:26]} fxe6 {[%emt 0:02:09]} 17. Bh3 {[%emt 0:02:09]} Qe5 {[%emt 0:00:10]} 18. Qxe5 {[%emt 0:01:05]} Nxe5 {[%emt 0:00:07]} 19. Bxe6+ {[%emt 0:00:03]} Nf7 {[%emt 0:02:41]} 20. Nf3 {[%emt 0:01:33]} Kg7 {[%emt 0:00:47]} 21. b4 {[%emt 0:06:34]} Nd6 {[%emt 0:04:21]} 22. Nd4 {[%emt 0:06:03]} Nc4 {[%emt 0:02:30]} 23. Bd7 {[%emt 0:02:35]} Rf6 {[%emt 0:01:10]} 24. b5 {[%emt 0:03:14]} c5 {[%emt 0:01:22]} 25. Ne6+ {[%emt 0:00:33]} Kf7 {[%emt 0:00:50]} 26. Ng5+ {[%emt 0:00:49]} Kg7 {[%emt 0:00:31]} 27. Rfd1 {[%emt 0:05:37]} Ne5 {[%emt 0:01:04]} 28. Bh3 {[%emt 0:04:13]} h6 {[%emt 0:01:06]} 29. Ne6+ {[%emt 0:01:44]} Kf7 {[%emt 0:03:46]} 30. Nc7 {[%emt 0:00:50]} Rd8 {[%emt 0:01:04]} 31. f4 {[%emt 0:00:26]} Nd7 {[%emt 0:02:48]} 32. Nxd5 {[%emt 0:01:41]} Rd6 {[%emt 0:00:25]} 33. Ne3 {[%emt 0:01:15]} Nf6 {[%emt 0:00:32]} 34. Rxd6 {[%emt 0:00:24]} Rxd6 {[%emt 0:00:01]} 35. Nc4 {[%emt 0:00:02]} Rd4 {[%emt 0:01:01]} 36. e3 {[%emt 0:00:13]} Rd8 {[%emt 0:00:24]} 37. Bg2 {[%emt 0:01:59]} Bxg2 {[%emt 0:02:52]} 38. Kxg2 {[%emt 0:00:01]} Ke6 {[%emt 0:00:27]} 39. Kf3 {[%emt 0:01:21]} g5 {[%emt 0:00:26]} 40. h3 {[%emt 0:01:52]} Rd3 {[%emt 0:01:22]} 41. Ke2 {[%emt 0:41:11]} Rd5 {[%emt 0:40:28]} 42. Nd2 {[%emt 0:04:10]} Nh5 {[%emt 0:01:52]} 43. Ne4 {[%emt 0:02:44]} gxf4 {[%emt 0:00:19]} 44. gxf4 {[%emt 0:00:49]} Kf5 {[%emt 0:01:41]} 45. Nf2 {[%emt 0:00:16]} Rd7 {[%emt 0:33:37]} 46. Ng4 {[%emt 0:03:08]} Nxf4+ {[%emt 0:00:00]} 47. exf4 {[%emt 0:01:03]} Kxf4 {[%emt 0:00:00]} 48. Nxh6 {[%emt 0:07:16]} Rh7 {[%emt 0:00:00]} 49. Rf1+ {[%emt 0:00:16]} Kg5 {[%emt 0:00:00]} 50. Nf7+ {[%emt 0:00:15]} Kh4 {[%emt 0:00:00]} 51. Kd3 {[%emt 0:01:02]} Rg7 {[%emt 0:00:00]} 52. Rf3 {[%emt 0:02:18]} Rg2 {[%emt 0:00:00]} 53. a3 {[%emt 0:00:32]} Rb2 {[%emt 0:00:00]} 54. Kc4 {[%emt 0:00:15]} Rc2+ {[%emt 0:04:30]} 55. Kb3 {[%emt 0:00:30]} Rc1 {[%emt 0:00:00]} 56. Ne5 {[%emt 0:01:51]} Rb1+ {[%emt 0:00:00]} 57. Kc4 {[%emt 0:00:40]} Re1 {[%emt 0:00:00]} 58. Nc6 {[%emt 0:00:21]} Re4+ {[%emt 0:00:00]} 59. Kc3 {[%emt 0:00:17]} a6 {[%emt 0:00:00]} 60. bxa6 {[%emt 0:14:43]} Ra4 {[%emt 0:00:00]} 61. a7 {[%emt 0:00:00]} 1-0